[Event "Early-Titled-Tuesday-Blitz-March-12-2024"]
[Site "Chess.com"]
[Date "2024.03.12"]
[Round "8"]
[White "Felix-Rose"]
[Black "DIMONBANAN"]
[Result "0-1"]
[WhiteElo "2266"]
[BlackElo "2532"]
[TimeControl "180+1"]
[EndTime "9:26:09 PDT"]
[Termination "DIMONBANAN won by resignation"]

1. d4 {[%clk 0:02:59.8]} 1... d5 {[%clk 0:02:52.9]} 2. Nc3 {[%clk 0:02:59.8]}
2... a6 {[%clk 0:02:49.8]} 3. e4 {[%clk 0:02:53.1]} 3... dxe4 {[%clk 0:02:49.1]}
4. Nxe4 {[%clk 0:02:52.6]} 4... Nf6 {[%clk 0:02:49.3]} 5. Nxf6+ {[%clk
0:02:45.5]} 5... exf6 {[%clk 0:02:50.2]} 6. Nf3 {[%clk 0:02:45.3]} 6... Bd6
{[%clk 0:02:50]} 7. Bd3 {[%clk 0:02:45.4]} 7... O-O {[%clk 0:02:49.4]} 8. O-O
{[%clk 0:02:43.1]} 8... Bg4 {[%clk 0:02:47.9]} 9. c3 {[%clk 0:02:41]} 9... c6
{[%clk 0:02:42.7]} 10. h3 {[%clk 0:02:41.3]} 10... Bh5 {[%clk 0:02:42.7]} 11.
Bd2 {[%clk 0:02:32.4]} 11... Nd7 {[%clk 0:02:40.2]} 12. Be2 {[%clk 0:02:29.7]}
12... Re8 {[%clk 0:02:39.3]} 13. Re1 {[%clk 0:02:29.6]} 13... Qb6 {[%clk
0:02:37.1]} 14. b3 {[%clk 0:02:25.5]} 14... Rad8 {[%clk 0:02:30.6]} 15. Nh2
{[%clk 0:02:25.2]} 15... Bg6 {[%clk 0:02:19.3]} 16. Bf3 {[%clk 0:02:19.9]} 16...
c5 {[%clk 0:02:17.9]} 17. Rxe8+ {[%clk 0:02:06.7]} 17... Rxe8 {[%clk 0:02:17.1]}
18. Be3 {[%clk 0:02:06.4]} 18... Qc7 {[%clk 0:02:16.5]} 19. Nf1 {[%clk 0:02:05]}
19... cxd4 {[%clk 0:02:15.1]} 20. Qxd4 {[%clk 0:01:55.8]} 20... Be5 {[%clk
0:02:07.7]} 21. Qd5 {[%clk 0:01:40.7]} 21... b5 {[%clk 0:01:23.3]} 22. Rc1
{[%clk 0:01:34.5]} 22... Nf8 {[%clk 0:01:02]} 23. c4 {[%clk 0:01:26.7]} 23...
Qa5 {[%clk 0:00:57.5]} 24. cxb5 {[%clk 0:01:13.5]} 24... axb5 {[%clk 0:00:58.4]}
25. a4 {[%clk 0:01:13.4]} 25... Rb8 {[%clk 0:00:58]} 26. Be2 {[%clk 0:01:04.3]}
26... Qb4 {[%clk 0:00:18.7]} 27. Bxb5 {[%clk 0:01:01.1]} 27... Ne6 {[%clk
0:00:18.9]} 28. Rc4 {[%clk 0:00:57.6]} 28... Qa3 {[%clk 0:00:18.6]} 29. Qd6
{[%clk 0:00:54.3]} 29... Qxd6 {[%clk 0:00:18]} 30. a5 {[%clk 0:00:51.2]} 30...
Rxb5 {[%clk 0:00:14.2]} 31. Rc8+ {[%clk 0:00:51.7]} 31... Nf8 {[%clk 0:00:14.2]}
32. a6 {[%clk 0:00:51.6]} 32... Qxa6 {[%clk 0:00:13.7]} 33. Re8 {[%clk
0:00:48.7]} 33... Rb8 {[%clk 0:00:10.6]} 34. Rxe5 {[%clk 0:00:47.9]} 34... fxe5
{[%clk 0:00:10.5]} 0-1

[Event "Early-Titled-Tuesday-Blitz-March-12-2024"]
[Site "Chess.com"]
[Date "2024.03.12"]
[Round "8"]
[White "ajedrezsinlimites"]
[Black "CSB7"]
[Result "1-0"]
[WhiteElo "2561"]
[BlackElo "2774"]
[TimeControl "180+1"]
[EndTime "9:26:14 PDT"]
[Termination "ajedrezsinlimites won by resignation"]

1. e4 {[%clk 0:02:57]} 1... e6 {[%clk 0:02:59.9]} 2. d4 {[%clk 0:02:51.8]} 2...
d5 {[%clk 0:03:00.4]} 3. exd5 {[%clk 0:02:52.6]} 3... exd5 {[%clk 0:03:00]} 4.
Bd3 {[%clk 0:02:51.5]} 4... c5 {[%clk 0:02:59.3]} 5. Nf3 {[%clk 0:02:50.5]} 5...
c4 {[%clk 0:02:57.2]} 6. Be2 {[%clk 0:02:49.4]} 6... Nf6 {[%clk 0:02:57.3]} 7.
O-O {[%clk 0:02:49]} 7... Nc6 {[%clk 0:02:57]} 8. b3 {[%clk 0:02:49.9]} 8...
cxb3 {[%clk 0:02:56.7]} 9. cxb3 {[%clk 0:02:43.5]} 9... Bd6 {[%clk 0:02:51.3]}
10. Nc3 {[%clk 0:02:41.1]} 10... h6 {[%clk 0:02:48.8]} 11. Nb5 {[%clk
0:02:38.5]} 11... O-O {[%clk 0:02:31.4]} 12. Nxd6 {[%clk 0:02:36.5]} 12... Qxd6
{[%clk 0:02:32.3]} 13. Re1 {[%clk 0:02:30.2]} 13... Bg4 {[%clk 0:02:22.3]} 14.
h3 {[%clk 0:02:29.4]} 14... Bh5 {[%clk 0:02:17.9]} 15. Ne5 {[%clk 0:02:29.2]}
15... Bxe2 {[%clk 0:01:52.3]} 16. Rxe2 {[%clk 0:02:30.1]} 16... Rfe8 {[%clk
0:01:41.7]} 17. Bf4 {[%clk 0:02:26.4]} 17... Qb4 {[%clk 0:01:40]} 18. Nxc6
{[%clk 0:02:18.4]} 18... bxc6 {[%clk 0:01:40.9]} 19. Rc2 {[%clk 0:02:13.2]}
19... Re6 {[%clk 0:01:39.2]} 20. Rac1 {[%clk 0:02:08.2]} 20... Rae8 {[%clk
0:01:34.8]} 21. Be3 {[%clk 0:02:01]} 21... Qb7 {[%clk 0:01:27.2]} 22. Qd3 {[%clk
0:02:00.3]} 22... Ne4 {[%clk 0:01:22.7]} 23. Bf4 {[%clk 0:01:58]} 23... Qd7
{[%clk 0:01:10.8]} 24. Kh2 {[%clk 0:01:57.2]} 24... Rf6 {[%clk 0:01:07.7]} 25.
Be3 {[%clk 0:01:52.7]} 25... Ree6 {[%clk 0:00:59.3]} 26. Kg1 {[%clk 0:01:52.5]}
26... Rg6 {[%clk 0:00:55.9]} 27. f3 {[%clk 0:01:45.5]} 27... Ng3 {[%clk
0:00:54]} 28. Bf4 {[%clk 0:01:43.2]} 28... Nh5 {[%clk 0:00:33]} 29. Be5 {[%clk
0:01:39.9]} 29... Re8 {[%clk 0:00:26.9]} 30. Kh2 {[%clk 0:01:28.8]} 30... Ree6
{[%clk 0:00:22.4]} 31. f4 {[%clk 0:01:24.8]} 31... Re8 {[%clk 0:00:15.7]} 32. f5
{[%clk 0:01:14.4]} 32... Rg5 {[%clk 0:00:15.5]} 33. Rxc6 {[%clk 0:01:08.9]}
33... Rxf5 {[%clk 0:00:12.8]} 34. Rd6 {[%clk 0:01:05.1]} 34... Qxd6 {[%clk
0:00:07.1]} 35. Bxd6 {[%clk 0:01:04.9]} 35... Rf2 {[%clk 0:00:07.8]} 36. Rf1
{[%clk 0:01:02.5]} 36... Rxa2 {[%clk 0:00:05.5]} 37. Qf5 {[%clk 0:00:56.6]}
37... Nf6 {[%clk 0:00:06]} 38. Be5 {[%clk 0:00:56]} 38... Re6 {[%clk 0:00:06.6]}
39. Bxf6 {[%clk 0:00:55.2]} 39... Rxf6 {[%clk 0:00:07.5]} 40. Qc8+ {[%clk
0:00:54.6]} 40... Kh7 {[%clk 0:00:08.2]} 41. Rxf6 {[%clk 0:00:54.9]} 41... gxf6
{[%clk 0:00:09.1]} 42. Qf5+ {[%clk 0:00:54.9]} 42... Kg7 {[%clk 0:00:09.8]} 43.
Qxd5 {[%clk 0:00:54.8]} 43... Rd2 {[%clk 0:00:10.5]} 44. Qe4 {[%clk 0:00:51.2]}
1-0

[Event "Early-Titled-Tuesday-Blitz-March-12-2024"]
[Site "Chess.com"]
[Date "2024.03.12"]
[Round "8"]
[White "Kielinkei"]
[Black "Defend1r"]
[Result "1-0"]
[WhiteElo "2585"]
[BlackElo "2726"]
[TimeControl "180+1"]
[EndTime "9:26:21 PDT"]
[Termination "Kielinkei won by checkmate"]

1. c4 {[%clk 0:03:00.9]} 1... Nf6 {[%clk 0:02:58.8]} 2. g3 {[%clk 0:03:01.2]}
2... e6 {[%clk 0:02:59.1]} 3. Bg2 {[%clk 0:03:01.7]} 3... d5 {[%clk 0:02:59.4]}
4. Nf3 {[%clk 0:03:02.3]} 4... dxc4 {[%clk 0:02:57.8]} 5. O-O {[%clk 0:03:00.7]}
5... Be7 {[%clk 0:02:57.4]} 6. Ne5 {[%clk 0:02:57.3]} 6... Qd4 {[%clk
0:02:57.1]} 7. Nf3 {[%clk 0:02:54]} 7... Qc5 {[%clk 0:02:54.7]} 8. b3 {[%clk
0:02:42.6]} 8... cxb3 {[%clk 0:02:50.5]} 9. Ba3 {[%clk 0:02:33.5]} 9... b2
{[%clk 0:02:50.8]} 10. Bxb2 {[%clk 0:02:30]} 10... Qb6 {[%clk 0:02:46.5]} 11.
Bc3 {[%clk 0:02:16.9]} 11... c5 {[%clk 0:02:42.2]} 12. d4 {[%clk 0:02:15.7]}
12... Nc6 {[%clk 0:02:41.4]} 13. dxc5 {[%clk 0:02:10.2]} 13... Qxc5 {[%clk
0:02:41]} 14. Nd4 {[%clk 0:02:04.5]} 14... O-O {[%clk 0:02:38.8]} 15. Nxc6
{[%clk 0:02:03.5]} 15... bxc6 {[%clk 0:02:39.7]} 16. Qc1 {[%clk 0:01:48.2]}
16... Ba6 {[%clk 0:02:36]} 17. Bb2 {[%clk 0:01:28.7]} 17... Bxe2 {[%clk
0:02:21.6]} 18. Qxc5 {[%clk 0:01:27]} 18... Bxc5 {[%clk 0:02:22.5]} 19. Rc1
{[%clk 0:01:26.7]} 19... Bb6 {[%clk 0:02:22.9]} 20. Nc3 {[%clk 0:01:20.7]} 20...
Bb5 {[%clk 0:02:18.3]} 21. Nxb5 {[%clk 0:01:18]} 21... cxb5 {[%clk 0:02:18.7]}
22. Bxa8 {[%clk 0:01:16.5]} 22... Rxa8 {[%clk 0:02:19.6]} 23. Bxf6 {[%clk
0:01:03.2]} 23... gxf6 {[%clk 0:02:20.5]} 24. Rc6 {[%clk 0:01:01.1]} 24... Rd8
{[%clk 0:02:19]} 25. Rac1 {[%clk 0:00:46.9]} 25... Rd3 {[%clk 0:02:13.2]} 26.
R1c3 {[%clk 0:00:38.7]} 26... Rd1+ {[%clk 0:02:12.5]} 27. Kg2 {[%clk 0:00:38.7]}
27... Rb1 {[%clk 0:02:12.5]} 28. Rc2 {[%clk 0:00:36.9]} 28... Rb4 {[%clk
0:02:11.7]} 29. h4 {[%clk 0:00:34.6]} 29... Kg7 {[%clk 0:02:10.8]} 30. h5 {[%clk
0:00:33.9]} 30... f5 {[%clk 0:02:10.1]} 31. Rd6 {[%clk 0:00:32.4]} 31... f4
{[%clk 0:02:07.2]} 32. g4 {[%clk 0:00:29]} 32... h6 {[%clk 0:02:07.4]} 33. Rd7
{[%clk 0:00:27.8]} 33... e5 {[%clk 0:02:01]} 34. Rc6 {[%clk 0:00:24.9]} 34...
Rb2 {[%clk 0:01:53.2]} 35. g5 {[%clk 0:00:18.4]} 35... Rxf2+ {[%clk 0:01:50.3]}
36. Kh3 {[%clk 0:00:18.9]} 36... Rf3+ {[%clk 0:01:49.9]} 37. Kh2 {[%clk
0:00:16.6]} 37... hxg5 {[%clk 0:01:43.2]} 38. h6+ {[%clk 0:00:16.5]} 38... Kh8
{[%clk 0:01:19.7]} 39. Rxf7 {[%clk 0:00:13.7]} 39... Rd3 {[%clk 0:01:19.1]} 40.
Rc8+ {[%clk 0:00:13.1]} 40... Rd8 {[%clk 0:01:18.8]} 41. Rxd8+ {[%clk
0:00:13.5]} 41... Bxd8 {[%clk 0:01:19.7]} 42. Rf8+ {[%clk 0:00:14.3]} 42... Kh7
{[%clk 0:01:20.3]} 43. Rxd8 {[%clk 0:00:15.2]} 43... e4 {[%clk 0:01:20.4]} 44.
Re8 {[%clk 0:00:14.9]} 44... e3 {[%clk 0:01:20.5]} 45. Kg2 {[%clk 0:00:13.6]}
45... g4 {[%clk 0:01:20.8]} 46. Re4 {[%clk 0:00:12.5]} 46... f3+ {[%clk
0:01:20.5]} 47. Kf1 {[%clk 0:00:12.2]} 47... e2+ {[%clk 0:01:20.1]} 48. Kf2
{[%clk 0:00:12.7]} 48... Kxh6 {[%clk 0:01:20.2]} 49. Rxg4 {[%clk 0:00:13.3]}
49... a5 {[%clk 0:01:16.9]} 50. Rf4 {[%clk 0:00:13.8]} 50... Kg5 {[%clk
0:01:15.5]} 51. Rxf3 {[%clk 0:00:14.2]} 51... Kg4 {[%clk 0:01:16.4]} 52. Rb3
{[%clk 0:00:13.9]} 52... b4 {[%clk 0:01:16.3]} 53. Kxe2 {[%clk 0:00:14.3]} 53...
Kf4 {[%clk 0:01:17.2]} 54. a3 {[%clk 0:00:14.8]} 54... Ke5 {[%clk 0:01:18.1]}
55. axb4 {[%clk 0:00:14.6]} 55... a4 {[%clk 0:01:19]} 56. Ra3 {[%clk 0:00:15]}
56... Ke4 {[%clk 0:01:19.9]} 57. Rxa4 {[%clk 0:00:15.9]} 57... Kd4 {[%clk
0:01:20.7]} 58. Ra8 {[%clk 0:00:16.1]} 58... Kc4 {[%clk 0:01:21.2]} 59. Rb8
{[%clk 0:00:17]} 59... Kd5 {[%clk 0:01:21.6]} 60. Kd3 {[%clk 0:00:17.5]} 60...
Kc6 {[%clk 0:01:22.5]} 61. Kc4 {[%clk 0:00:17.4]} 61... Kc7 {[%clk 0:01:23.4]}
62. Rh8 {[%clk 0:00:17.6]} 62... Kc6 {[%clk 0:01:24]} 63. Rh6+ {[%clk
0:00:18.5]} 63... Kb7 {[%clk 0:01:24.4]} 64. Kb5 {[%clk 0:00:19.1]} 64... Kc7
{[%clk 0:01:25.3]} 65. Ka6 {[%clk 0:00:19.4]} 65... Kd7 {[%clk 0:01:25.5]} 66.
b5 {[%clk 0:00:19.9]} 66... Kc7 {[%clk 0:01:26.4]} 67. b6+ {[%clk 0:00:20.4]}
67... Kc8 {[%clk 0:01:27.1]} 68. b7+ {[%clk 0:00:20.9]} 68... Kc7 {[%clk
0:01:27.7]} 69. Ka7 {[%clk 0:00:20.9]} 69... Kd7 {[%clk 0:01:28]} 70. b8=Q
{[%clk 0:00:21.3]} 70... Ke7 {[%clk 0:01:28.8]} 71. Qb7+ {[%clk 0:00:21.6]}
71... Kf8 {[%clk 0:01:28.9]} 72. Rh8# {[%clk 0:00:22]} 1-0

[Event "Early-Titled-Tuesday-Blitz-March-12-2024"]
[Site "Chess.com"]
[Date "2024.03.12"]
[Round "8"]
[White "maciek_92"]
[Black "Eloist"]
[Result "1-0"]
[WhiteElo "2886"]
[BlackElo "2429"]
[TimeControl "180+1"]
[EndTime "9:26:29 PDT"]
[Termination "maciek_92 won on time"]

1. Nc3 {[%clk 0:02:54.4]} 1... d5 {[%clk 0:02:59.4]} 2. e3 {[%clk 0:02:54.2]}
2... e5 {[%clk 0:02:56.5]} 3. Nf3 {[%clk 0:02:54.7]} 3... e4 {[%clk 0:02:53.3]}
4. Nd4 {[%clk 0:02:54.9]} 4... c5 {[%clk 0:02:49.8]} 5. Nde2 {[%clk 0:02:54.9]}
5... Nf6 {[%clk 0:02:46.3]} 6. d4 {[%clk 0:02:54.9]} 6... exd3 {[%clk
0:02:34.3]} 7. cxd3 {[%clk 0:02:54.3]} 7... d4 {[%clk 0:02:31]} 8. Ne4 {[%clk
0:02:51.7]} 8... Nxe4 {[%clk 0:02:13.7]} 9. dxe4 {[%clk 0:02:52.6]} 9... Nc6
{[%clk 0:02:09.3]} 10. Ng3 {[%clk 0:02:50.7]} 10... Be7 {[%clk 0:01:57.4]} 11.
Bc4 {[%clk 0:02:39.3]} 11... O-O {[%clk 0:01:54]} 12. O-O {[%clk 0:02:38.9]}
12... Be6 {[%clk 0:01:29.9]} 13. Bb5 {[%clk 0:02:36]} 13... Qb6 {[%clk
0:01:24.2]} 14. a4 {[%clk 0:02:31.7]} 14... Rad8 {[%clk 0:01:19.9]} 15. Qe2
{[%clk 0:02:23]} 15... a6 {[%clk 0:01:07.6]} 16. Bxc6 {[%clk 0:02:20.9]} 16...
bxc6 {[%clk 0:01:04.4]} 17. f4 {[%clk 0:02:15]} 17... d3 {[%clk 0:00:59.4]} 18.
Qf2 {[%clk 0:02:11.4]} 18... c4 {[%clk 0:00:56.5]} 19. f5 {[%clk 0:02:07.3]}
19... Bc8 {[%clk 0:00:54.4]} 20. e5 {[%clk 0:02:07.8]} 20... Bg5 {[%clk
0:00:36]} 21. Ne4 {[%clk 0:02:02.6]} 21... d2 {[%clk 0:00:30.7]} 22. Nxg5 {[%clk
0:02:01.6]} 22... d1=Q {[%clk 0:00:26]} 23. f6 {[%clk 0:01:22.1]} 23... Qg4
{[%clk 0:00:19.6]} 24. h4 {[%clk 0:01:00.2]} 24... h6 {[%clk 0:00:17.9]} 25.
fxg7 {[%clk 0:00:59.7]} 25... Kxg7 {[%clk 0:00:17.1]} 26. Qf6+ {[%clk
0:00:59.1]} 26... Kg8 {[%clk 0:00:14.4]} 27. Qxh6 {[%clk 0:01:00]} 27... Bf5
{[%clk 0:00:10.1]} 28. Kh2 {[%clk 0:00:54.7]} 28... Qc7 {[%clk 0:00:09.1]} 29.
e4 {[%clk 0:00:52.5]} 29... Qxe5+ {[%clk 0:00:09]} 30. Bf4 {[%clk 0:00:52.4]}
30... Qg7 {[%clk 0:00:05.6]} 31. Qxg7+ {[%clk 0:00:51.6]} 31... Kxg7 {[%clk
0:00:06.3]} 32. exf5 {[%clk 0:00:52]} 32... Qxh4+ {[%clk 0:00:06.5]} 33. Nh3
{[%clk 0:00:52.6]} 33... Rd3 {[%clk 0:00:05.8]} 34. f6+ {[%clk 0:00:40.5]} 34...
Kg6 {[%clk 0:00:03.5]} 35. Rae1 {[%clk 0:00:40.4]} 35... Rfd8 {[%clk 0:00:02]}
36. Re5 {[%clk 0:00:39]} 36... R3d4 {[%clk 0:00:01.3]} 37. Rg5+ {[%clk
0:00:38.7]} 37... Kh7 {[%clk 0:00:01.3]} 38. Rg7+ {[%clk 0:00:35.8]} 1-0

[Event "Early-Titled-Tuesday-Blitz-March-12-2024"]
[Site "Chess.com"]
[Date "2024.03.12"]
[Round "8"]
[White "Peng_Li-Min"]
[Black "KuzubovYuriy"]
[Result "0-1"]
[WhiteElo "2808"]
[BlackElo "2925"]
[TimeControl "180+1"]
[EndTime "9:26:31 PDT"]
[Termination "KuzubovYuriy won by resignation"]

1. d4 {[%clk 0:02:54.8]} 1... Nf6 {[%clk 0:03:00.2]} 2. c4 {[%clk 0:02:54.2]}
2... e6 {[%clk 0:03:00.5]} 3. Nc3 {[%clk 0:02:54.4]} 3... d5 {[%clk 0:03:00.4]}
4. Nf3 {[%clk 0:02:46.4]} 4... a6 {[%clk 0:02:59.7]} 5. cxd5 {[%clk 0:02:43.1]}
5... exd5 {[%clk 0:03:00.6]} 6. Bg5 {[%clk 0:02:42.7]} 6... Be6 {[%clk
0:03:00.5]} 7. Qb3 {[%clk 0:02:40.2]} 7... Nbd7 {[%clk 0:02:59.8]} 8. e3 {[%clk
0:02:38.6]} 8... Rb8 {[%clk 0:02:54.6]} 9. Rd1 {[%clk 0:02:32.7]} 9... Bd6
{[%clk 0:02:49.5]} 10. Qc2 {[%clk 0:02:10.2]} 10... h6 {[%clk 0:02:44.9]} 11.
Bh4 {[%clk 0:02:08.9]} 11... c6 {[%clk 0:02:39.6]} 12. Bd3 {[%clk 0:02:04.4]}
12... Qe7 {[%clk 0:02:33.5]} 13. a3 {[%clk 0:01:50.2]} 13... O-O {[%clk
0:02:30.8]} 14. O-O {[%clk 0:01:45.9]} 14... Rfe8 {[%clk 0:02:25.1]} 15. e4
{[%clk 0:01:28.5]} 15... g5 {[%clk 0:02:20.1]} 16. e5 {[%clk 0:00:56.7]} 16...
gxh4 {[%clk 0:02:18.9]} 17. exd6 {[%clk 0:00:56.8]} 17... Qxd6 {[%clk
0:02:12.3]} 18. Nxh4 {[%clk 0:00:57.3]} 18... Kh8 {[%clk 0:01:55.8]} 19. f4
{[%clk 0:00:47.4]} 19... Bg4 {[%clk 0:01:42.1]} 20. Rd2 {[%clk 0:00:47.6]} 20...
Rg8 {[%clk 0:01:33.9]} 21. Kh1 {[%clk 0:00:31.9]} 21... Qe7 {[%clk 0:01:30.4]}
22. Nf5 {[%clk 0:00:24]} 22... Bxf5 {[%clk 0:01:21.1]} 23. Bxf5 {[%clk
0:00:24.9]} 23... Rbe8 {[%clk 0:01:21.2]} 24. Re2 {[%clk 0:00:22.7]} 24... Qd6
{[%clk 0:01:21.4]} 25. g3 {[%clk 0:00:21.5]} 25... Rxe2 {[%clk 0:01:19.9]} 26.
Qxe2 {[%clk 0:00:20.3]} 26... Re8 {[%clk 0:01:19.7]} 27. Qf2 {[%clk 0:00:20.3]}
27... Nf8 {[%clk 0:01:13.2]} 28. Re1 {[%clk 0:00:18.9]} 28... Rxe1+ {[%clk
0:01:06.9]} 29. Qxe1 {[%clk 0:00:19.8]} 29... Ne6 {[%clk 0:01:06.8]} 30. Qe5
{[%clk 0:00:14.7]} 30... Qxe5 {[%clk 0:01:05.6]} 31. dxe5 {[%clk 0:00:13.7]}
31... Nd7 {[%clk 0:01:03.3]} 32. b4 {[%clk 0:00:12.1]} 32... Nb6 {[%clk
0:00:59.4]} 33. Bxe6 {[%clk 0:00:05.2]} 33... fxe6 {[%clk 0:00:59.4]} 34. Ne2
{[%clk 0:00:06.1]} 34... Kg7 {[%clk 0:00:57]} 35. Nd4 {[%clk 0:00:07]} 35... Kf7
{[%clk 0:00:57.1]} 36. g4 {[%clk 0:00:06.7]} 36... Nc4 {[%clk 0:00:52.9]} 37. a4
{[%clk 0:00:07.2]} 37... a5 {[%clk 0:00:53.4]} 38. bxa5 {[%clk 0:00:07.3]} 38...
Nxa5 {[%clk 0:00:47.9]} 39. f5 {[%clk 0:00:07.5]} 39... exf5 {[%clk 0:00:48]}
40. gxf5 {[%clk 0:00:07.8]} 40... Nc4 {[%clk 0:00:46.8]} 41. e6+ {[%clk
0:00:06.5]} 41... Kf6 {[%clk 0:00:45.9]} 42. Kg2 {[%clk 0:00:07.1]} 42... Nd6
{[%clk 0:00:44.7]} 43. Kf3 {[%clk 0:00:07]} 43... c5 {[%clk 0:00:44.7]} 44. e7
{[%clk 0:00:05.6]} 44... cxd4 {[%clk 0:00:43.5]} 0-1

[Event "Early-Titled-Tuesday-Blitz-March-12-2024"]
[Site "Chess.com"]
[Date "2024.03.12"]
[Round "8"]
[White "zenitushka"]
[Black "santosalberto1987"]
[Result "0-1"]
[WhiteElo "2298"]
[BlackElo "2578"]
[TimeControl "180+1"]
[EndTime "9:26:32 PDT"]
[Termination "santosalberto1987 won by checkmate"]

1. d4 {[%clk 0:02:56.9]} 1... Nf6 {[%clk 0:02:56.3]} 2. f3 {[%clk 0:02:56.8]}
2... d5 {[%clk 0:02:55.3]} 3. e4 {[%clk 0:02:57.3]} 3... dxe4 {[%clk 0:02:55.2]}
4. Nc3 {[%clk 0:02:57.9]} 4... c5 {[%clk 0:02:48.5]} 5. d5 {[%clk 0:02:55.5]}
5... e3 {[%clk 0:02:42.9]} 6. Bxe3 {[%clk 0:02:54.1]} 6... a6 {[%clk 0:02:41]}
7. Bxc5 {[%clk 0:02:49.1]} 7... Bf5 {[%clk 0:02:38.9]} 8. Nge2 {[%clk
0:02:13.9]} 8... e5 {[%clk 0:02:32.1]} 9. Bxf8 {[%clk 0:02:09.5]} 9... Kxf8
{[%clk 0:02:33]} 10. Ng3 {[%clk 0:02:06.6]} 10... Bg6 {[%clk 0:02:32.9]} 11. Bc4
{[%clk 0:01:48.4]} 11... b5 {[%clk 0:02:32.5]} 12. Bb3 {[%clk 0:01:48.6]} 12...
Nbd7 {[%clk 0:02:30.2]} 13. O-O {[%clk 0:01:48.3]} 13... Nb6 {[%clk 0:02:26.2]}
14. Re1 {[%clk 0:01:41.3]} 14... b4 {[%clk 0:02:21.4]} 15. Na4 {[%clk
0:01:29.6]} 15... Nxa4 {[%clk 0:02:19.8]} 16. Bxa4 {[%clk 0:01:30.5]} 16... Qd6
{[%clk 0:02:00.6]} 17. Qe2 {[%clk 0:01:11.8]} 17... Nxd5 {[%clk 0:01:31.2]} 18.
Qxe5 {[%clk 0:01:06.1]} 18... Qxe5 {[%clk 0:01:31.3]} 19. Rxe5 {[%clk
0:01:06.2]} 19... Nb6 {[%clk 0:01:31.6]} 20. Bb3 {[%clk 0:00:43.4]} 20... a5
{[%clk 0:01:31.3]} 21. a4 {[%clk 0:00:38.7]} 21... Nd7 {[%clk 0:01:23.2]} 22.
Rb5 {[%clk 0:00:36.6]} 22... Ke7 {[%clk 0:01:19.8]} 23. Re1+ {[%clk 0:00:34.2]}
23... Kf6 {[%clk 0:01:15.1]} 24. Rb7 {[%clk 0:00:28.9]} 24... Rhd8 {[%clk
0:01:13.7]} 25. Ne4+ {[%clk 0:00:29]} 25... Bxe4 {[%clk 0:01:13.1]} 26. Rxe4
{[%clk 0:00:29.9]} 26... g5 {[%clk 0:01:05]} 27. h4 {[%clk 0:00:27.7]} 27... h6
{[%clk 0:01:04.7]} 28. hxg5+ {[%clk 0:00:26.2]} 28... hxg5 {[%clk 0:01:05.6]}
29. f4 {[%clk 0:00:17.1]} 29... g4 {[%clk 0:00:56.3]} 30. Rd4 {[%clk 0:00:15.1]}
30... Ke7 {[%clk 0:00:45.6]} 31. Bc4 {[%clk 0:00:09.3]} 31... Rab8 {[%clk
0:00:26.5]} 32. Rdxd7+ {[%clk 0:00:09.4]} 32... Rxd7 {[%clk 0:00:26.6]} 33. Rxb8
{[%clk 0:00:10.3]} 33... Rd2 {[%clk 0:00:26.6]} 34. Bb3 {[%clk 0:00:09.8]} 34...
g3 {[%clk 0:00:26.7]} 35. Rg8 {[%clk 0:00:07.6]} 35... Rd1# {[%clk 0:00:26.1]}
0-1

[Event "Early-Titled-Tuesday-Blitz-March-12-2024"]
[Site "Chess.com"]
[Date "2024.03.12"]
[Round "8"]
[White "nelsi"]
[Black "TregubovP"]
[Result "0-1"]
[WhiteElo "2416"]
[BlackElo "2671"]
[TimeControl "180+1"]
[EndTime "9:26:35 PDT"]
[Termination "TregubovP won by checkmate"]

1. e4 {[%clk 0:03:00.9]} 1... c5 {[%clk 0:02:59.4]} 2. Nf3 {[%clk 0:03:00.5]}
2... e6 {[%clk 0:02:59.3]} 3. Nc3 {[%clk 0:03:00.3]} 3... Nc6 {[%clk 0:02:58.8]}
4. Bb5 {[%clk 0:03:00.2]} 4... Nge7 {[%clk 0:02:58.8]} 5. O-O {[%clk 0:03:00.2]}
5... a6 {[%clk 0:02:59.3]} 6. Bxc6 {[%clk 0:03:00.9]} 6... Nxc6 {[%clk
0:02:59.6]} 7. d4 {[%clk 0:03:01.8]} 7... cxd4 {[%clk 0:02:59]} 8. Nxd4 {[%clk
0:03:02.7]} 8... d6 {[%clk 0:02:59.4]} 9. Nxc6 {[%clk 0:03:00.4]} 9... bxc6
{[%clk 0:02:59.7]} 10. e5 {[%clk 0:02:58.7]} 10... d5 {[%clk 0:02:57.3]} 11. a3
{[%clk 0:02:58.9]} 11... Be7 {[%clk 0:02:41]} 12. f4 {[%clk 0:02:55.8]} 12...
O-O {[%clk 0:02:39.8]} 13. b4 {[%clk 0:02:45.9]} 13... a5 {[%clk 0:02:39.2]} 14.
Rb1 {[%clk 0:02:45]} 14... axb4 {[%clk 0:02:36.1]} 15. axb4 {[%clk 0:02:45.9]}
15... Ba6 {[%clk 0:02:29.6]} 16. Rf3 {[%clk 0:02:29.4]} 16... Rb8 {[%clk
0:02:29.8]} 17. Rh3 {[%clk 0:02:19.6]} 17... g6 {[%clk 0:02:26.4]} 18. b5 {[%clk
0:01:53.8]} 18... Bxb5 {[%clk 0:02:17.2]} 19. Nxb5 {[%clk 0:01:53.4]} 19... Rxb5
{[%clk 0:02:13.4]} 20. Rxb5 {[%clk 0:01:53.4]} 20... cxb5 {[%clk 0:02:14.1]} 21.
Rb3 {[%clk 0:01:43.2]} 21... Qb6+ {[%clk 0:02:08.9]} 22. Be3 {[%clk 0:01:40.7]}
22... Bc5 {[%clk 0:02:06.3]} 23. Bxc5 {[%clk 0:01:25.8]} 23... Qxc5+ {[%clk
0:02:06.7]} 24. Kh1 {[%clk 0:01:26.6]} 24... Rc8 {[%clk 0:02:06.9]} 25. h3
{[%clk 0:01:23.9]} 25... Qf2 {[%clk 0:01:53.7]} 26. Qg4 {[%clk 0:00:27.6]} 26...
Rxc2 {[%clk 0:01:47.2]} 27. Qg5 {[%clk 0:00:20.3]} 27... Rc8 {[%clk 0:01:22.5]}
28. Rf3 {[%clk 0:00:16.5]} 28... Qe1+ {[%clk 0:01:15.5]} 29. Kh2 {[%clk
0:00:16.7]} 29... Qe4 {[%clk 0:01:16]} 30. h4 {[%clk 0:00:10.4]} 30... b4 {[%clk
0:01:13.6]} 31. h5 {[%clk 0:00:10.2]} 31... Qf5 {[%clk 0:01:13.1]} 32. Qxf5
{[%clk 0:00:05.4]} 32... gxf5 {[%clk 0:01:10.1]} 33. Rb3 {[%clk 0:00:06.3]}
33... Rc4 {[%clk 0:01:05.3]} 34. g3 {[%clk 0:00:05]} 34... Kg7 {[%clk
0:01:05.1]} 35. Kg2 {[%clk 0:00:03.1]} 35... Kh6 {[%clk 0:01:04.4]} 36. Kf3
{[%clk 0:00:03.6]} 36... Kxh5 {[%clk 0:01:04.4]} 37. Rb1 {[%clk 0:00:04.2]}
37... Rc3+ {[%clk 0:01:01.9]} 38. Kf2 {[%clk 0:00:04.7]} 38... b3 {[%clk
0:01:01.8]} 39. Rh1+ {[%clk 0:00:04.6]} 39... Kg6 {[%clk 0:01:02.4]} 40. Rb1
{[%clk 0:00:04.5]} 40... h5 {[%clk 0:01:00]} 41. Kg2 {[%clk 0:00:04.3]} 41... h4
{[%clk 0:00:58.4]} 42. gxh4 {[%clk 0:00:04.3]} 42... Kh5 {[%clk 0:00:59.1]} 43.
Kf2 {[%clk 0:00:05]} 43... Kxh4 {[%clk 0:00:57.7]} 44. Rg1 {[%clk 0:00:04.2]}
44... b2 {[%clk 0:00:56.3]} 45. Rb1 {[%clk 0:00:04.3]} 45... Rb3 {[%clk
0:00:56]} 46. Ke2 {[%clk 0:00:04.7]} 46... Kg4 {[%clk 0:00:56]} 47. Kd2 {[%clk
0:00:05.6]} 47... Kxf4 {[%clk 0:00:56.2]} 48. Kc2 {[%clk 0:00:06.5]} 48... Rb5
{[%clk 0:00:53.3]} 49. Ra1 {[%clk 0:00:04.4]} 49... bxa1=Q {[%clk 0:00:51.4]}
50. Kd3 {[%clk 0:00:04.3]} 50... Qd1+ {[%clk 0:00:48.7]} 51. Kc3 {[%clk
0:00:04.6]} 51... Rb3# {[%clk 0:00:48.8]} 0-1